[Event "Live Chess"]
[Site "Chess.com"]
[Date "2023.05.21"]
[Round "-"]
[White "JoshMcK"]
[Black "davigator"]
[Result "0-1"]
[WhiteElo "1533"]
[BlackElo "2328"]
[TimeControl "300"]
[EndTime "4:42:41 PDT"]
[Termination "davigator won by resignation"]

1. e4 {[%clk 0:04:59.1]} 1... c5 {[%clk 0:04:58.1]} 2. c3 {[%clk 0:04:57.8]}
2... d5 {[%clk 0:04:55.2]} 3. exd5 {[%clk 0:04:56.8]} 3... Qxd5 {[%clk
0:04:54.3]} 4. d4 {[%clk 0:04:56.4]} 4... Nc6 {[%clk 0:04:52.1]} 5. Nf3 {[%clk
0:04:53.2]} 5... Nf6 {[%clk 0:04:49.7]} 6. Be3 {[%clk 0:04:45.7]} 6... cxd4
{[%clk 0:04:48.1]} 7. Nxd4 {[%clk 0:04:42.3]} 7... Bd7 {[%clk 0:04:36.3]} 8. Nd2
{[%clk 0:04:31]} 8... e6 {[%clk 0:04:32.3]} 9. Nb5 {[%clk 0:04:29.5]} 9... Rc8
{[%clk 0:04:29.2]} 10. Nxa7 {[%clk 0:04:21.6]} 10... Nxa7 {[%clk 0:04:20.6]} 11.
Bxa7 {[%clk 0:04:21.5]} 11... Bc6 {[%clk 0:04:11.7]} 12. Be3 {[%clk 0:03:54.6]}
12... h5 {[%clk 0:04:01.6]} 13. Nf3 {[%clk 0:03:50.7]} 13... h4 {[%clk
0:03:55.1]} 14. Qxd5 {[%clk 0:03:41.7]} 14... Nxd5 {[%clk 0:03:50.8]} 15. h3
{[%clk 0:03:32.9]} 15... Nxe3 {[%clk 0:03:48.3]} 16. fxe3 {[%clk 0:03:32.8]}
16... Bc5 {[%clk 0:03:45.5]} 17. Nd4 {[%clk 0:03:23.1]} 17... Be4 {[%clk
0:03:43.3]} 18. Bb5+ {[%clk 0:03:18.3]} 18... Ke7 {[%clk 0:03:41.9]} 19. Rg1
{[%clk 0:03:13]} 19... e5 {[%clk 0:03:37.1]} 20. Nf3 {[%clk 0:02:40.4]} 20...
Bxe3 {[%clk 0:03:35.5]} 21. Rf1 {[%clk 0:02:38.2]} 21... f6 {[%clk 0:03:33.4]}
22. Rd1 {[%clk 0:02:30.6]} 22... Rc7 {[%clk 0:03:31.9]} 23. Ba4 {[%clk 0:02:25]}
23... g5 {[%clk 0:03:23.5]} 24. Bb3 {[%clk 0:02:21.9]} 24... Bf4 {[%clk
0:03:16.4]} 25. Bd5 {[%clk 0:02:02.2]} 25... Bc2 {[%clk 0:03:10.7]} 26. Ra1
{[%clk 0:01:57.2]} 26... b5 {[%clk 0:03:08.1]} 27. Nd2 {[%clk 0:01:48.6]} 27...
Rd8 {[%clk 0:03:03.2]} 28. Rc1 {[%clk 0:01:25.2]} 28... Bd3 {[%clk 0:03:02]} 29.
Rxf4 {[%clk 0:01:10.3]} 29... gxf4 {[%clk 0:02:55.2]} 30. Bf3 {[%clk 0:01:09.4]}
30... f5 {[%clk 0:02:52.6]} 31. Nb3 {[%clk 0:01:04.1]} 31... Bc4 {[%clk
0:02:47.7]} 32. Rd1 {[%clk 0:00:55.2]} 32... Bxb3 {[%clk 0:02:43.7]} 33. axb3
{[%clk 0:00:51.1]} 33... e4 {[%clk 0:02:43.3]} 34. Be2 {[%clk 0:00:47.9]} 34...
b4 {[%clk 0:02:42.4]} 35. Rxd8 {[%clk 0:00:39.9]} 35... Kxd8 {[%clk 0:02:40.3]}
36. cxb4 {[%clk 0:00:38.7]} 36... Rc2 {[%clk 0:02:38.5]} 37. Bc4 {[%clk
0:00:32.3]} 37... Ke7 {[%clk 0:02:36.5]} 38. Kf1 {[%clk 0:00:30.5]} 38... Rxb2
{[%clk 0:02:34.4]} 39. Kg1 {[%clk 0:00:28.9]} 39... Rd2 {[%clk 0:02:31.2]} 40.
Kf1 {[%clk 0:00:27.9]} 40... Kd6 {[%clk 0:02:29.4]} 41. Ke1 {[%clk 0:00:27.2]}
41... Rxg2 {[%clk 0:02:24.6]} 0-1

[Event "Live Chess"]
[Site "Chess.com"]
[Date "2023.05.21"]
[Round "-"]
[White "Hacker_2009"]
[Black "LiamClery2020"]
[Result "1/2-1/2"]
[WhiteElo "1918"]
[BlackElo "2003"]
[TimeControl "300"]
[EndTime "4:42:45 PDT"]
[Termination "Game drawn by agreement"]

1. d4 {[%clk 0:04:57.9]} 1... Nf6 {[%clk 0:04:59.9]} 2. c4 {[%clk 0:04:54.2]}
2... g6 {[%clk 0:04:58.9]} 3. Nc3 {[%clk 0:04:53.6]} 3... d5 {[%clk 0:04:57.9]}
4. Bg5 {[%clk 0:04:49.6]} 4... Bg7 {[%clk 0:04:55.6]} 5. Bxf6 {[%clk 0:04:47.7]}
5... Bxf6 {[%clk 0:04:54.7]} 6. cxd5 {[%clk 0:04:47.6]} 6... c6 {[%clk
0:04:53.3]} 7. dxc6 {[%clk 0:04:43.4]} 7... Nxc6 {[%clk 0:04:52.4]} 8. e3 {[%clk
0:04:42.7]} 8... O-O {[%clk 0:04:50.8]} 9. Nf3 {[%clk 0:04:41.9]} 9... Qa5
{[%clk 0:04:49]} 10. Be2 {[%clk 0:04:39.6]} 10... Bg4 {[%clk 0:04:48.1]} 11. O-O
{[%clk 0:04:38.9]} 11... Rad8 {[%clk 0:04:46.9]} 12. Qb3 {[%clk 0:04:32.4]}
12... Rd7 {[%clk 0:04:41]} 13. a3 {[%clk 0:04:24.4]} 13... e5 {[%clk 0:04:37.4]}
14. dxe5 {[%clk 0:04:21.4]} 14... Bxe5 {[%clk 0:04:29.1]} 15. Nxe5 {[%clk
0:04:16.7]} 15... Nxe5 {[%clk 0:04:29]} 16. Bxg4 {[%clk 0:04:13.2]} 16... Nxg4
{[%clk 0:04:28.9]} 17. h3 {[%clk 0:04:12.3]} 17... Ne5 {[%clk 0:04:21.4]} 18.
Rfd1 {[%clk 0:04:09.9]} 18... Rfd8 {[%clk 0:04:19.7]} 19. Rxd7 {[%clk
0:04:00.7]} 19... Rxd7 {[%clk 0:04:19.6]} 20. Rd1 {[%clk 0:03:58.8]} 20... Rxd1+
{[%clk 0:04:17.7]} 21. Qxd1 {[%clk 0:03:57.3]} 21... Qb6 {[%clk 0:04:15.7]} 22.
Qe2 {[%clk 0:03:50.4]} 22... Nc6 {[%clk 0:04:07.3]} 23. b4 {[%clk 0:03:44.3]}
23... a5 {[%clk 0:04:05.3]} 24. Nd5 {[%clk 0:03:40]} 24... Qd8 {[%clk
0:04:03.1]} 25. Qb5 {[%clk 0:03:34.5]} 25... axb4 {[%clk 0:04:01.3]} 26. Nxb4
{[%clk 0:03:27.4]} 26... Qd1+ {[%clk 0:03:59.7]} 27. Kh2 {[%clk 0:03:25]} 27...
Qd6+ {[%clk 0:03:58.4]} 28. g3 {[%clk 0:03:24]} 28... Qd2 {[%clk 0:03:56.6]} 29.
Kg2 {[%clk 0:03:20.2]} 29... Nxb4 {[%clk 0:03:37.8]} 30. Qxb4 {[%clk 0:03:17.5]}
30... Qd5+ {[%clk 0:03:36.1]} 31. e4 {[%clk 0:03:16]} 31... Qc6 {[%clk
0:03:34.6]} 32. a4 {[%clk 0:03:10]} 32... f5 {[%clk 0:03:33.5]} 33. Qb3+ {[%clk
0:03:04.6]} 33... Kg7 {[%clk 0:03:32.4]} 34. Qb2+ {[%clk 0:03:00.5]} 34... Kg8
{[%clk 0:03:31.4]} 35. Qb3+ {[%clk 0:02:57.3]} 35... Kg7 {[%clk 0:03:30.4]} 36.
Qb2+ {[%clk 0:02:56.1]} 36... Kg8 {[%clk 0:03:27.5]} 1/2-1/2

[Event "Live Chess"]
[Site "Chess.com"]
[Date "2023.05.21"]
[Round "-"]
[White "FlyingChessKestrel13"]
[Black "gmnorfolk"]
[Result "0-1"]
[WhiteElo "2063"]
[BlackElo "2121"]
[TimeControl "300"]
[EndTime "4:42:47 PDT"]
[Termination "gmnorfolk won by resignation"]

1. e4 {[%clk 0:04:58.9]} 1... c5 {[%clk 0:04:58.3]} 2. Nc3 {[%clk 0:04:56.1]}
2... d6 {[%clk 0:04:55.2]} 3. g3 {[%clk 0:04:55.1]} 3... g6 {[%clk 0:04:54]} 4.
Bg2 {[%clk 0:04:54.8]} 4... Bg7 {[%clk 0:04:53]} 5. Nge2 {[%clk 0:04:54.5]} 5...
Nc6 {[%clk 0:04:51.2]} 6. O-O {[%clk 0:04:53.8]} 6... e5 {[%clk 0:04:50.5]} 7.
Nd5 {[%clk 0:04:52.1]} 7... Nge7 {[%clk 0:04:48.7]} 8. c3 {[%clk 0:04:51.1]}
8... Nxd5 {[%clk 0:04:42.6]} 9. exd5 {[%clk 0:04:49.9]} 9... Ne7 {[%clk
0:04:42.3]} 10. d4 {[%clk 0:04:49.3]} 10... cxd4 {[%clk 0:04:40.5]} 11. cxd4
{[%clk 0:04:48.6]} 11... O-O {[%clk 0:04:37.6]} 12. dxe5 {[%clk 0:04:47.5]}
12... Bxe5 {[%clk 0:04:35.9]} 13. Bh6 {[%clk 0:04:45.8]} 13... Re8 {[%clk
0:04:34.6]} 14. f4 {[%clk 0:04:44.4]} 14... Bxb2 {[%clk 0:04:33.5]} 15. Rb1
{[%clk 0:04:43.5]} 15... Bg7 {[%clk 0:04:32.4]} 16. Bxg7 {[%clk 0:04:41.4]}
16... Kxg7 {[%clk 0:04:31.7]} 17. Qd4+ {[%clk 0:04:40.5]} 17... f6 {[%clk
0:04:30.5]} 18. Qc3 {[%clk 0:04:27.6]} 18... Nf5 {[%clk 0:04:27.5]} 19. Nd4
{[%clk 0:04:14.8]} 19... Nxd4 {[%clk 0:04:26.1]} 20. Qxd4 {[%clk 0:04:13.9]}
20... b6 {[%clk 0:04:21.3]} 21. Rfe1 {[%clk 0:04:10.7]} 21... Bd7 {[%clk
0:04:17.8]} 22. Qb4 {[%clk 0:04:01.8]} 22... Qc7 {[%clk 0:04:08.6]} 23. Rec1
{[%clk 0:03:59.6]} 23... Qb8 {[%clk 0:04:01.6]} 24. h4 {[%clk 0:03:50.8]} 24...
h5 {[%clk 0:03:59.5]} 25. Qd4 {[%clk 0:03:37.8]} 25... Bf5 {[%clk 0:03:54.5]}
26. Rb3 {[%clk 0:03:31]} 26... Re7 {[%clk 0:03:49.2]} 27. Rbc3 {[%clk
0:03:29.2]} 27... Qe8 {[%clk 0:03:43.6]} 28. Kh2 {[%clk 0:03:24.2]} 28... Rd8
{[%clk 0:03:35.5]} 29. Rc6 {[%clk 0:03:09.7]} 29... Re2 {[%clk 0:03:32.9]} 30.
Rc7+ {[%clk 0:03:00.6]} 30... Rd7 {[%clk 0:03:28.1]} 31. Rxd7+ {[%clk
0:02:58.1]} 31... Qxd7 {[%clk 0:03:26.5]} 32. Qc4 {[%clk 0:02:50.1]} 32... Qe7
{[%clk 0:03:17.7]} 33. Qc7 {[%clk 0:02:47.9]} 33... Kf7 {[%clk 0:02:57.5]} 34.
Qxe7+ {[%clk 0:02:42.4]} 34... Rxe7 {[%clk 0:02:55.1]} 35. Kg1 {[%clk 0:02:37]}
35... Ke8 {[%clk 0:02:51.6]} 36. Kf2 {[%clk 0:02:29.5]} 36... Bg4 {[%clk
0:02:46.5]} 37. Bf3 {[%clk 0:02:26.3]} 37... Bf5 {[%clk 0:02:39]} 38. Rc3 {[%clk
0:02:21.2]} 38... Kd8 {[%clk 0:02:35.1]} 39. Rc6 {[%clk 0:02:13]} 39... Kd7
{[%clk 0:02:27]} 40. Rc3 {[%clk 0:02:11.5]} 40... Re8 {[%clk 0:02:22.9]} 41. Ra3
{[%clk 0:02:01.1]} 41... Ra8 {[%clk 0:02:15.4]} 42. Be2 {[%clk 0:01:54.3]} 42...
a5 {[%clk 0:02:13.6]} 43. Rb3 {[%clk 0:01:50.1]} 43... Rb8 {[%clk 0:02:10.3]}
44. Bb5+ {[%clk 0:01:48.3]} 44... Kd8 {[%clk 0:02:02.3]} 45. Re3 {[%clk
0:01:43.4]} 45... Bd7 {[%clk 0:01:56.8]} 46. Bxd7 {[%clk 0:01:39.9]} 46... Kxd7
{[%clk 0:01:55.5]} 47. Re6 {[%clk 0:01:39.2]} 47... Rf8 {[%clk 0:01:53.8]} 48.
Ke3 {[%clk 0:01:37]} 48... Re8 {[%clk 0:01:41.7]} 49. Rxe8 {[%clk 0:01:28.7]}
49... Kxe8 {[%clk 0:01:40.8]} 50. Kd4 {[%clk 0:01:28.4]} 50... b5 {[%clk
0:01:33.7]} 51. Kc3 {[%clk 0:01:21.8]} 51... Kf7 {[%clk 0:01:28.1]} 52. Kd4
{[%clk 0:01:20.8]} 52... Ke7 {[%clk 0:01:22.1]} 53. Kc3 {[%clk 0:01:19.3]} 53...
Kd7 {[%clk 0:01:21.1]} 54. a4 {[%clk 0:01:15.3]} 54... bxa4 {[%clk 0:01:07.4]}
55. Kc4 {[%clk 0:01:12.2]} 55... Kc7 {[%clk 0:01:05.9]} 56. Kd4 {[%clk
0:01:10.8]} 56... Kb6 {[%clk 0:01:04.7]} 57. Kc4 {[%clk 0:01:10.3]} 57... a3
{[%clk 0:01:03.2]} 0-1

[Event "Live Chess"]
[Site "Chess.com"]
[Date "2023.05.21"]
[Round "-"]
[White "GMHarry-youtube"]
[Black "tpm07"]
[Result "1-0"]
[WhiteElo "2032"]
[BlackElo "1927"]
[TimeControl "300"]
[EndTime "4:43:11 PDT"]
[Termination "GMHarry-youtube won by checkmate"]

1. e4 {[%clk 0:04:57.3]} 1... e5 {[%clk 0:04:58]} 2. Nf3 {[%clk 0:04:55.9]} 2...
Nc6 {[%clk 0:04:57.1]} 3. Bc4 {[%clk 0:04:54.6]} 3... Nf6 {[%clk 0:04:55.4]} 4.
d3 {[%clk 0:04:53.2]} 4... Be7 {[%clk 0:04:53.7]} 5. c3 {[%clk 0:04:52]} 5...
O-O {[%clk 0:04:53]} 6. O-O {[%clk 0:04:50.6]} 6... d6 {[%clk 0:04:52.5]} 7. h3
{[%clk 0:04:48]} 7... a6 {[%clk 0:04:51.7]} 8. a4 {[%clk 0:04:46.6]} 8... Na5
{[%clk 0:04:49.2]} 9. Ba2 {[%clk 0:04:44.7]} 9... Be6 {[%clk 0:04:47.2]} 10. b4
{[%clk 0:04:42.5]} 10... Bxa2 {[%clk 0:04:43.1]} 11. Rxa2 {[%clk 0:04:41.1]}
11... Nc6 {[%clk 0:04:41.9]} 12. Be3 {[%clk 0:04:36.8]} 12... d5 {[%clk
0:04:39.4]} 13. Nfd2 {[%clk 0:04:33.8]} 13... Qd7 {[%clk 0:04:30.8]} 14. c4
{[%clk 0:04:29]} 14... dxe4 {[%clk 0:04:18.1]} 15. Nxe4 {[%clk 0:04:25.9]} 15...
Bxb4 {[%clk 0:04:01.6]} 16. Nxf6+ {[%clk 0:04:22.5]} 16... gxf6 {[%clk
0:04:00.1]} 17. Qf3 {[%clk 0:04:18.4]} 17... f5 {[%clk 0:03:53.5]} 18. Bh6
{[%clk 0:04:09.3]} 18... Nd4 {[%clk 0:03:45.1]} 19. Qg3+ {[%clk 0:04:07.4]}
19... Kh8 {[%clk 0:03:43.3]} 20. Qg7# {[%clk 0:04:07]} 1-0

[Event "Live Chess"]
[Site "Chess.com"]
[Date "2023.05.21"]
[Round "-"]
[White "viktorskliarov"]
[Black "RockTroll"]
[Result "1-0"]
[WhiteElo "2654"]
[BlackElo "2231"]
[TimeControl "300"]
[EndTime "4:43:12 PDT"]
[Termination "viktorskliarov won by resignation"]

1. e4 {[%clk 0:04:57.8]} 1... e5 {[%clk 0:04:58.6]} 2. Nc3 {[%clk 0:04:53.5]}
2... Nf6 {[%clk 0:04:57]} 3. Bc4 {[%clk 0:04:51.9]} 3... Nc6 {[%clk 0:04:52.4]}
4. d3 {[%clk 0:04:51]} 4... Na5 {[%clk 0:04:51.6]} 5. Nge2 {[%clk 0:04:49.5]}
5... Bc5 {[%clk 0:04:45.7]} 6. Ng3 {[%clk 0:04:47.7]} 6... d6 {[%clk 0:04:39.2]}
7. O-O {[%clk 0:04:45.3]} 7... c6 {[%clk 0:04:36.3]} 8. Bb3 {[%clk 0:04:40.8]}
8... O-O {[%clk 0:04:29.8]} 9. Be3 {[%clk 0:04:36.9]} 9... Bxe3 {[%clk
0:04:15.2]} 10. fxe3 {[%clk 0:04:36.8]} 10... d5 {[%clk 0:03:44.6]} 11. Qf3
{[%clk 0:03:53.4]} 11... Be6 {[%clk 0:03:09.6]} 12. h3 {[%clk 0:03:45.1]} 12...
Qd7 {[%clk 0:02:56.5]} 13. Kh2 {[%clk 0:03:36.5]} 13... Nxb3 {[%clk 0:02:46.5]}
14. axb3 {[%clk 0:03:33.8]} 14... a5 {[%clk 0:02:44.2]} 15. exd5 {[%clk
0:02:52.4]} 15... cxd5 {[%clk 0:02:41.9]} 16. d4 {[%clk 0:02:51.6]} 16... e4
{[%clk 0:02:31.7]} 17. Qf4 {[%clk 0:02:48.4]} 17... b5 {[%clk 0:02:27]} 18. Qh4
{[%clk 0:02:29.9]} 18... Rfc8 {[%clk 0:02:09]} 19. Rxf6 {[%clk 0:02:08.6]} 19...
gxf6 {[%clk 0:02:08]} 20. Nh5 {[%clk 0:02:07.7]} 20... Qd6+ {[%clk 0:01:49.6]}
21. Kg1 {[%clk 0:01:58.4]} 21... Bf5 {[%clk 0:01:47.8]} 22. Rf1 {[%clk
0:01:40.9]} 22... Bg6 {[%clk 0:01:46.6]} 23. Rxf6 {[%clk 0:01:35.1]} 23... Qd8
{[%clk 0:01:38.1]} 24. Nf4 {[%clk 0:01:25.1]} 24... b4 {[%clk 0:01:24.4]} 25.
Ncxd5 {[%clk 0:01:24]} 25... Rxc2 {[%clk 0:01:23.4]} 26. Ne7+ {[%clk 0:01:19.9]}
26... Kg7 {[%clk 0:01:13.8]} 27. Nfd5 {[%clk 0:00:51.5]} 27... Rxb2 {[%clk
0:00:47.3]} 28. Rxg6+ {[%clk 0:00:50.2]} 28... hxg6 {[%clk 0:00:35.6]} 29. Qf6+
{[%clk 0:00:49.1]} 29... Kh6 {[%clk 0:00:29]} 30. Nf5+ {[%clk 0:00:47.6]} 1-0

[Event "Live Chess"]
[Site "Chess.com"]
[Date "2023.05.21"]
[Round "-"]
[White "Pandreq"]
[Black "bedsdrout"]
[Result "1-0"]
[WhiteElo "1236"]
[BlackElo "566"]
[TimeControl "300"]
[EndTime "4:43:19 PDT"]
[Termination "Pandreq won by checkmate"]

1. d4 {[%clk 0:04:54.1]} 1... e5 {[%clk 0:04:45.3]} 2. d5 {[%clk 0:04:51.1]}
2... Nf6 {[%clk 0:04:36.1]} 3. c4 {[%clk 0:04:47.2]} 3... Bc5 {[%clk 0:04:27.2]}
4. Nc3 {[%clk 0:04:43.3]} 4... Nh5 {[%clk 0:04:14.7]} 5. Nf3 {[%clk 0:04:37.5]}
5... e4 {[%clk 0:04:09.4]} 6. Nxe4 {[%clk 0:04:32.8]} 6... Bb6 {[%clk
0:04:02.4]} 7. e3 {[%clk 0:04:24.7]} 7... Qe7 {[%clk 0:03:51.5]} 8. Bd3 {[%clk
0:04:09.8]} 8... Ba5+ {[%clk 0:03:39.4]} 9. Bd2 {[%clk 0:04:06.7]} 9... Bb4
{[%clk 0:03:32]} 10. a3 {[%clk 0:04:05]} 10... Bxd2+ {[%clk 0:03:21.8]} 11.
Nfxd2 {[%clk 0:04:04.9]} 11... Nf6 {[%clk 0:03:01.1]} 12. O-O {[%clk 0:03:58.7]}
12... Ng4 {[%clk 0:02:54.3]} 13. Qxg4 {[%clk 0:03:52.5]} 13... h6 {[%clk
0:02:43.5]} 14. Qxg7 {[%clk 0:03:47.3]} 14... d6 {[%clk 0:02:35.3]} 15. Qxh8+
{[%clk 0:03:43.7]} 15... Kd7 {[%clk 0:02:29]} 16. Nf6+ {[%clk 0:03:38.8]} 16...
Qxf6 {[%clk 0:02:05.8]} 17. Qxf6 {[%clk 0:03:37]} 17... Nc6 {[%clk 0:01:59.8]}
18. Bf5+ {[%clk 0:03:34.2]} 18... Ke8 {[%clk 0:01:51.2]} 19. dxc6 {[%clk
0:03:28.5]} 19... bxc6 {[%clk 0:01:49.5]} 20. Bxc8 {[%clk 0:03:19.4]} 20... Rxc8
{[%clk 0:01:46.1]} 21. Qh8+ {[%clk 0:03:14.7]} 21... Kd7 {[%clk 0:01:43.3]} 22.
Qxh6 {[%clk 0:03:13.7]} 22... Ke7 {[%clk 0:01:40.3]} 23. Ne4 {[%clk 0:03:10.4]}
23... Rf8 {[%clk 0:01:34.8]} 24. Qf6+ {[%clk 0:03:05.2]} 24... Ke8 {[%clk
0:01:32]} 25. Nxd6+ {[%clk 0:03:01.2]} 25... Kd7 {[%clk 0:01:29.4]} 26. Rad1
{[%clk 0:02:55.9]} 26... cxd6 {[%clk 0:01:26.6]} 27. Qxd6+ {[%clk 0:02:54.8]}
27... Ke8 {[%clk 0:01:23]} 28. Qd7# {[%clk 0:02:53.9]} 1-0

[Event "Live Chess"]
[Site "Chess.com"]
[Date "2023.05.21"]
[Round "-"]
[White "Missedidea"]
[Black "Tushinskiy"]
[Result "0-1"]
[WhiteElo "1813"]
[BlackElo "2212"]
[TimeControl "300"]
[EndTime "4:43:30 PDT"]
[Termination "Tushinskiy won on time"]

1. d4 {[%clk 0:04:58.4]} 1... d5 {[%clk 0:04:50]} 2. c4 {[%clk 0:04:56.9]} 2...
c6 {[%clk 0:04:49.9]} 3. Nc3 {[%clk 0:04:55]} 3... Nf6 {[%clk 0:04:46.7]} 4. Nf3
{[%clk 0:04:53.5]} 4... e6 {[%clk 0:04:44.1]} 5. Bg5 {[%clk 0:04:51.6]} 5... Be7
{[%clk 0:04:42.7]} 6. e3 {[%clk 0:04:50.7]} 6... Nbd7 {[%clk 0:04:38.8]} 7. Rc1
{[%clk 0:04:48.6]} 7... O-O {[%clk 0:04:36.2]} 8. Bd3 {[%clk 0:04:46.3]} 8...
Re8 {[%clk 0:04:32.8]} 9. O-O {[%clk 0:04:44.4]} 9... Nf8 {[%clk 0:04:30.6]} 10.
b3 {[%clk 0:04:40.3]} 10... N6d7 {[%clk 0:04:28.4]} 11. Bf4 {[%clk 0:04:36.6]}
11... Bf6 {[%clk 0:04:26.1]} 12. Bg3 {[%clk 0:04:33.7]} 12... Qa5 {[%clk
0:04:23.3]} 13. e4 {[%clk 0:04:28.4]} 13... dxc4 {[%clk 0:03:24.2]} 14. bxc4
{[%clk 0:04:25.9]} 14... e5 {[%clk 0:03:22.6]} 15. d5 {[%clk 0:04:08.5]} 15...
Nc5 {[%clk 0:03:20.2]} 16. Bb1 {[%clk 0:04:06.1]} 16... Bg4 {[%clk 0:03:17.3]}
17. h3 {[%clk 0:03:59.6]} 17... Bh5 {[%clk 0:03:15.7]} 18. Bh2 {[%clk
0:03:51.9]} 18... Rad8 {[%clk 0:03:13]} 19. g4 {[%clk 0:03:49.6]} 19... Bg6
{[%clk 0:03:11.5]} 20. g5 {[%clk 0:03:27.2]} 20... Be7 {[%clk 0:03:09.1]} 21. h4
{[%clk 0:03:15.1]} 21... Bh5 {[%clk 0:03:06.7]} 22. Kg2 {[%clk 0:02:51]} 22...
Ng6 {[%clk 0:03:00.5]} 23. Bg3 {[%clk 0:02:36.9]} 23... Ne6 {[%clk 0:02:56.2]}
24. Kh2 {[%clk 0:02:21.2]} 24... Nd4 {[%clk 0:02:51.9]} 25. Nxd4 {[%clk
0:02:02.7]} 25... Bxd1 {[%clk 0:02:49.9]} 26. Rfxd1 {[%clk 0:02:01.5]} 26...
exd4 {[%clk 0:02:48]} 27. Rxd4 {[%clk 0:02:00.3]} 27... Ba3 {[%clk 0:02:40.1]}
28. Rc2 {[%clk 0:01:54.6]} 28... Bc5 {[%clk 0:02:38.6]} 29. Rd1 {[%clk
0:01:45.8]} 29... Bd6 {[%clk 0:02:37.7]} 30. Ne2 {[%clk 0:01:34.2]} 30... Nxh4
{[%clk 0:02:33.4]} 31. Bxd6 {[%clk 0:01:28]} 31... Rxd6 {[%clk 0:02:33.3]} 32.
Ng3 {[%clk 0:01:17.8]} 32... Nf3+ {[%clk 0:02:28.7]} 33. Kg2 {[%clk 0:01:14.5]}
33... Nxg5 {[%clk 0:02:28.6]} 34. Nf5 {[%clk 0:01:11.9]} 34... Rdd8 {[%clk
0:02:24.2]} 35. f3 {[%clk 0:01:03.3]} 35... g6 {[%clk 0:02:14.9]} 36. Nh6+
{[%clk 0:00:57.8]} 36... Kg7 {[%clk 0:02:13.4]} 37. Ng4 {[%clk 0:00:56.5]} 37...
h5 {[%clk 0:02:11.5]} 38. Ne3 {[%clk 0:00:52.3]} 38... f5 {[%clk 0:02:02.5]} 39.
d6 {[%clk 0:00:43.1]} 39... fxe4 {[%clk 0:02:00.5]} 40. f4 {[%clk 0:00:37.3]}
40... Ne6 {[%clk 0:01:57.9]} 41. Rf2 {[%clk 0:00:27.1]} 41... Qc3 {[%clk
0:01:48.1]} 42. f5 {[%clk 0:00:16.9]} 42... Qxe3 {[%clk 0:01:44.8]} 43. fxe6
{[%clk 0:00:15.3]} 43... Rxe6 {[%clk 0:01:42.5]} 44. d7 {[%clk 0:00:09.1]} 44...
Re7 {[%clk 0:01:37.6]} 45. Rfd2 {[%clk 0:00:04.6]} 45... Qg5+ {[%clk 0:01:34.6]}
46. Kf2 {[%clk 0:00:02.2]} 46... e3+ {[%clk 0:01:33.5]} 0-1

[Event "Live Chess"]
[Site "Chess.com"]
[Date "2023.05.21"]
[Round "-"]
[White "mattihelenius2"]
[Black "JanMur7"]
[Result "0-1"]
[WhiteElo "492"]
[BlackElo "1980"]
[TimeControl "300"]
[EndTime "4:44:09 PDT"]
[Termination "JanMur7 won by checkmate"]

1. d4 {[%clk 0:04:57.8]} 1... Nf6 {[%clk 0:04:58.8]} 2. c4 {[%clk 0:04:56]} 2...
e6 {[%clk 0:04:55.1]} 3. Nf3 {[%clk 0:04:53.8]} 3... d5 {[%clk 0:04:54.5]} 4.
Ne5 {[%clk 0:04:51.8]} 4... Be7 {[%clk 0:04:53.6]} 5. Nc3 {[%clk 0:04:47.6]}
5... O-O {[%clk 0:04:52.3]} 6. Bg5 {[%clk 0:04:46.5]} 6... h6 {[%clk 0:04:51.1]}
7. Be3 {[%clk 0:04:43.7]} 7... Nbd7 {[%clk 0:04:47.6]} 8. Bf4 {[%clk 0:04:26.8]}
8... Nxe5 {[%clk 0:04:43.5]} 9. Bxe5 {[%clk 0:04:24.5]} 9... dxc4 {[%clk
0:04:41.3]} 10. e3 {[%clk 0:04:19.6]} 10... c5 {[%clk 0:04:40.4]} 11. Bxc4
{[%clk 0:04:16.2]} 11... cxd4 {[%clk 0:04:39.5]} 12. Bxd4 {[%clk 0:04:09.5]}
12... Bd7 {[%clk 0:04:38.4]} 13. Bb5 {[%clk 0:03:57.4]} 13... Bxb5 {[%clk
0:04:35.2]} 14. Nxb5 {[%clk 0:03:57.3]} 14... e5 {[%clk 0:04:31.6]} 15. Bxe5
{[%clk 0:03:44.9]} 15... Qa5+ {[%clk 0:04:29.4]} 16. Nc3 {[%clk 0:03:40]} 16...
Qxe5 {[%clk 0:04:27.1]} 17. O-O {[%clk 0:03:11.6]} 17... Bd6 {[%clk 0:04:23.3]}
18. Qf3 {[%clk 0:03:04.2]} 18... Qxh2# {[%clk 0:04:21.3]} 0-1

[Event "Live Chess"]
[Site "Chess.com"]
[Date "2023.05.21"]
[Round "-"]
[White "Nakula1000"]
[Black "jumush"]
[Result "1-0"]
[WhiteElo "797"]
[BlackElo "1746"]
[TimeControl "300"]
[EndTime "4:44:24 PDT"]
[Termination "Nakula1000 won by resignation"]

1. e4 {[%clk 0:04:57.8]} 1... d5 {[%clk 0:04:55.6]} 2. exd5 {[%clk 0:04:55.8]}
2... Qxd5 {[%clk 0:04:54.3]} 3. Nc3 {[%clk 0:04:53.7]} 3... Qa5 {[%clk
0:04:52.8]} 4. d4 {[%clk 0:04:52.2]} 4... Nf6 {[%clk 0:04:50]} 5. Nf3 {[%clk
0:04:47.1]} 5... Bf5 {[%clk 0:04:48.3]} 6. a3 {[%clk 0:04:41.4]} 6... e6 {[%clk
0:04:46.3]} 7. Ne5 {[%clk 0:04:38.7]} 7... c6 {[%clk 0:04:44]} 8. g4 {[%clk
0:04:37.2]} 8... Be4 {[%clk 0:04:38.2]} 9. Nc4 {[%clk 0:04:32.8]} 9... Qc7
{[%clk 0:04:35.1]} 10. Nxe4 {[%clk 0:04:29.9]} 10... Nxe4 {[%clk 0:04:33.4]} 11.
h4 {[%clk 0:04:27.5]} 11... Nd7 {[%clk 0:04:30.4]} 12. Bg2 {[%clk 0:04:23.5]}
12... Nef6 {[%clk 0:04:27.9]} 13. g5 {[%clk 0:04:20.4]} 13... Nd5 {[%clk
0:04:26.1]} 14. O-O {[%clk 0:04:15.3]} 14... Be7 {[%clk 0:04:24.3]} 15. Bd2
{[%clk 0:04:13]} 15... O-O-O {[%clk 0:04:22.4]} 16. h5 {[%clk 0:04:10.6]} 16...
h6 {[%clk 0:04:18.5]} 17. g6 {[%clk 0:04:06.4]} 17... fxg6 {[%clk 0:04:16.7]}
18. hxg6 {[%clk 0:04:04.8]} 18... Rhf8 {[%clk 0:04:14.3]} 19. Qg4 {[%clk
0:04:02.3]} 19... Rf5 {[%clk 0:04:03]} 20. Rae1 {[%clk 0:03:59.2]} 20... Nf8
{[%clk 0:03:58.4]} 21. Rxe6 {[%clk 0:03:57.1]} 21... Nxe6 {[%clk 0:03:55.5]} 22.
Qxf5 {[%clk 0:03:55.3]} 22... Qd7 {[%clk 0:03:48.5]} 23. Ne5 {[%clk 0:03:53]}
23... Qd6 {[%clk 0:03:41.4]} 24. Bh3 {[%clk 0:03:49.7]} 1-0